bitfinex/quotes_ETHUSD_20230904
["timestamp","ask_amount","ask_price","bid_price","bid_amount"]
[1693796017048,0.101,1636.5,1636.4,17.02112886]
[1693796017226,0.101,1636.5,1636.4,18.61554351]
[1693796017541,0.101,1636.5,1636.4,18.70132944]
[1693796018902,0.101,1636.6,1636.4,18.70132944]
[1693796019097,0.101,1636.6,1636.5,21.25588618]
[1693796019355,0.101,1636.6,1636.5,21.86714721]
[1693796019535,0.101,1636.6,1636.5,22.89875735]
[1693796020207,0.101,1636.6,1636.5,23.85456093]
[1693796020411,0.101,1636.6,1636.5,25.38256093]
[1693796021140,0.242226,1636.8,1636.7,5.0]
[1693796021347,0.242226,1636.8,1636.7,23.04711507]
[1693796021504,0.242226,1636.8,1636.7,23.7698472]
[1693796022227,0.242226,1636.8,1636.7,23.13288527]
[1693796025125,0.242226,1636.8,1636.7,23.14071221]
[1693796032730,0.242226,1636.8,1636.7,23.63306425]
[1693796032965,3.4547,1637.2,1636.9,5.0]
[1693796033140,1.8462,1637.2,1637.1,4.17085404]
[1693796033343,0.101,1637.3,1637.1,7.25660328]
[1693796033545,0.101,1637.3,1637.2,3.08185404]
[1693796034065,0.101,1637.3,1637.2,3.08964078]
[1693796034252,0.051,1637.3,1637.2,3.08964078]
[1693796039872,0.051,1637.3,1637.2,14.18907978]
[1693796040059,0.051,1637.3,1637.2,17.18907978]
[1693796042953,0.051,1637.3,1637.2,20.28907978]
[1693796045279,0.051,1637.3,1637.2,19.56264078]
[1693796047593,0.051,1637.3,1637.2,18.47364078]
[1693796048100,0.051,1637.3,1637.2,19.50169889]
[1693796056173,0.051,1637.3,1637.2,20.00169889]
[1693796062257,0.68951645,1637.3,1637.2,20.00169889]
[1693796062453,1.75034616,1637.3,1637.2,20.00169889]
[1693796062887,0.051,1637.3,1637.2,22.1867537]
[1693796063208,0.051,1637.3,1637.2,26.7557537]
[1693796063376,0.051,1637.3,1637.2,27.36701473]
[1693796069464,0.051,1637.3,1637.2,26.7557537]
[1693796077172,0.051,1637.3,1637.2,27.24172312]
[1693796093714,0.051,1637.3,1637.2,26.76172312]
[1693796094096,0.051,1637.3,1637.2,27.37298415]
[1693796100703,0.051,1637.3,1637.2,28.01038649]
[1693796104010,0.051,1637.3,1637.2,23.00169889]
[1693796107106,0.051,1637.3,1637.2,23.63910123]
[1693796107941,0.051,1637.3,1637.2,24.72810123]
[1693796108446,0.051,1637.3,1637.2,25.68420474]
[1693796108642,0.051,1637.3,1637.2,24.72810123]
[1693796108843,0.051,1637.3,1637.2,27.8089771]
[1693796111077,0.051,1637.3,1637.2,28.76508061]
[1693796111237,0.051,1637.3,1637.2,27.8089771]
[1693796111437,0.051,1637.3,1637.2,28.76508061]
[1693796111939,0.051,1637.3,1637.2,27.8089771]
[1693796112280,0.051,1637.3,1637.2,24.72810123]
[1693796126784,0.051,1637.3,1637.2,25.2224967]
[1693796134228,0.051,1637.3,1637.2,24.1334967]
[1693796138828,0.051,1637.3,1637.2,25.2224967]
[1693796139751,0.051,1637.3,1637.2,25.83375773]
[1693796139910,0.051,1637.3,1637.2,28.84879925]
[1693796142586,0.04672,1637.3,1637.2,28.84879925]
[1693796142923,0.04672,1637.3,1637.2,29.16750042]
[1693796143227,0.04672,1637.3,1637.2,31.55970744]
[1693796145744,0.04672,1637.3,1637.2,29.96620159]
[1693796154688,0.04672,1637.3,1637.2,30.14597659]
[1693796155089,0.101,1637.6,1637.5,3.0]
[1693796155388,0.101,1637.6,1637.5,22.76884641]
[1693796155587,0.101,1637.6,1637.5,23.78047938]
[1693796155961,0.101,1637.6,1637.5,25.30947938]
[1693796156174,0.101,1637.6,1637.5,25.31790287]
[1693796156873,0.101,1637.6,1637.5,24.68117153]
[1693796160283,0.101,1637.6,1637.5,23.59217153]
[1693796160980,0.101,1637.6,1637.5,22.9809105]
[1693796165533,0.051,1637.6,1637.5,22.9809105]
[1693796169172,0.051,1637.6,1637.5,23.47819274]
[1693796169839,1.181,1637.9,1637.5,23.47819274]
[1693796170135,1.181,1637.9,1637.7,3.08185404]
[1693796170295,1.9927,1638.0,1637.7,12.36285404]
[1693796170496,1.9927,1638.0,1637.8,1.06729288]
[1693796170691,0.74147283,1638.1,1637.9,3.08185404]
[1693796171206,1.12029104,1638.1,1638.0,0.00806484]
[1693796171401,2.18078955,1638.1,1638.0,3.08991888]
[1693796171742,3.77153732,1638.1,1638.0,3.08991888]
[1693796183350,3.77153732,1638.1,1638.0,4.46542352]
[1693796183736,4.73224657,1638.1,1638.0,4.46542352]
[1693796184040,3.77153732,1638.1,1638.0,4.46542352]
[1693796184988,4.73224657,1638.1,1638.0,4.46542352]
[1693796186778,4.09177374,1638.1,1638.0,4.46542352]
[1693796189696,5.3727194,1638.1,1638.0,4.46542352]
[1693796191206,5.3227194,1638.1,1638.0,4.46542352]
[1693796194101,3.66295553,1638.1,1638.0,4.46542352]
[1693796199942,4.94390119,1638.1,1638.0,4.46542352]
[1693796200649,4.30389619,1638.1,1638.0,4.46542352]
[1693796200942,0.74194066,1638.2,1638.0,5.55442352]
[1693796201157,2.34265491,1638.5,1638.2,3.0]
[1693796201299,0.37768208,1638.7,1638.5,3.0]
[1693796201504,0.101,1639.0,1638.6,6.56185404]
[1693796201697,0.101,1639.0,1638.7,9.276]
[1693796201698,2.64980222,1638.9,1638.7,9.276]
[1693796201941,1.05992089,1638.8,1638.7,9.276]
[1693796202246,0.101,1639.0,1638.8,0.00784791]
[1693796203317,0.101,1639.0,1638.9,3.08185404]
[1693796206220,0.101,1639.0,1638.9,3.08967228]
[1693796211827,0.101,1639.0,1638.9,6.18967228]
[1693796212915,0.101,1639.0,1638.9,7.38820582]
[1693796222660,0.101,1639.0,1638.9,19.66220582]
[1693796222859,0.101,1639.0,1638.9,21.7373264]
[1693796223358,0.101,1639.0,1638.9,22.8263264]
[1693796223564,0.101,1639.0,1638.9,23.3063264]
[1693796224179,0.101,1639.0,1638.9,23.9433874]
[1693796224977,0.101,1639.0,1638.9,22.8543874]
[1693796229688,0.101,1639.0,1638.9,23.9433874]
[1693796229999,0.101,1639.0,1638.9,22.8543874]
[1693796233077,0.101,1639.0,1638.9,22.3743874]
[1693796234762,0.101,1639.0,1638.9,23.4633874]
[1693796235809,0.101,1639.0,1638.9,28.4633874]
[1693796236179,0.101,1639.0,1638.9,29.07464843]
[1693796236691,0.101,1639.0,1638.9,29.55464843]
[1693796237713,0.101,1639.0,1638.9,28.9433874]
[1693796245404,0.101,1639.0,1638.9,29.42379354]
[1693796274016,0.101,1639.0,1638.9,30.66616063]
[1693796277516,0.101,1639.0,1638.9,36.81697236]
[1693796277669,2.22460276,1639.6,1638.9,36.81697236]
[1693796277670,0.63560079,1639.6,1639.4,8.08185404]
[1693796277993,0.1038574,1639.7,1639.5,15.83185404]
[1693796278203,0.1038574,1639.7,1639.6,3.08185404]
[1693796278432,0.1038574,1639.7,1639.6,6.56185404]
[1693796278608,0.1038574,1639.7,1639.6,8.70629639]
[1693796279127,0.0538574,1639.7,1639.6,8.70629639]
[1693796279329,1.27120158,1640.1,1639.6,8.70629639]
[1693796279330,0.6473413,1640.4,1640.3,3.08185404]
[1693796279625,0.0084348,1640.4,1640.3,3.08185404]
[1693796279810,0.3660594,1640.4,1640.3,3.08185404]
[1693796280019,0.0084348,1640.4,1640.3,3.08185404]
[1693796282062,0.0084348,1640.4,1640.3,3.56185404]
[1693796282220,0.0084348,1640.4,1640.3,3.56892675]
[1693796282417,0.0084348,1640.4,1640.3,3.08892675]
[1693796282618,0.0084348,1640.4,1640.3,4.65792675]
[1693796282818,0.0084348,1640.4,1640.3,9.25041943]
[1693796283811,0.0084348,1640.4,1640.3,12.25041943]
[1693796285620,0.101,1640.7,1640.6,5.0]
[1693796285834,0.101,1640.7,1640.6,21.91385404]
[1693796286366,0.101,1641.4,1641.0,2.0]
[1693796286526,0.101,1641.4,1641.3,3.08185404]
[1693796287069,0.101,1641.4,1640.8,3.0]
[1693796287222,3.13118722,1641.4,1640.9,3.08185404]
[1693796287420,1.089,1641.1,1640.9,3.08185404]
[1693796287864,1.089,1641.0,1640.9,3.08185404]
[1693796288668,1.089,1641.0,1640.9,6.18185404]
[1693796288969,2.178,1641.0,1640.9,0.89654682]
[1693796289129,2.178,1641.0,1640.6,0.00703931]
[1693796289328,1.089,1640.7,1640.6,3.08889335]
[1693796289733,1.089,1640.7,1640.6,0.00703931]
[1693796290163,1.089,1640.7,1639.9,0.49518931]
[1693796290472,1.089,1640.7,1640.2,3.08185404]
[1693796291227,1.089,1640.7,1640.3,0.00603043]
[1693796291472,1.089,1640.7,1640.4,3.08185404]
[1693796292159,1.089,1640.7,1640.5,0.00601426]
[1693796294581,9.0,1640.9,1640.5,0.00601426]
[1693796294876,1.089,1640.6,1640.5,0.00601426]
[1693796295236,1.089,1640.6,1640.5,0.7989519]
[1693796295732,1.089,1640.6,1640.0,5.0]
[1693796295947,0.9,1640.8,1640.1,3.08185404]
[1693796296270,1.089,1640.6,1640.1,3.08790064]
[1693796296474,9.0,1640.7,1640.1,3.08790064]
[1693796296773,3.9,1640.8,1640.2,0.71217011]
[1693796296774,10.089,1640.5,1640.2,0.71217011]
[1693796296975,1.089,1640.3,1640.1,0.0060466]
[1693796297180,10.089,1640.5,1639.8,0.08560805]
[1693796297181,1.089,1640.2,1639.8,0.08560805]
[1693796297383,1.089,1640.1,1639.9,3.08185404]
[1693796297788,1.089,1640.2,1639.9,3.08185404]
[1693796298185,1.089,1640.3,1640.0,3.08764291]
[1693796298363,1.6236,1640.4,1640.0,3.08764291]
[1693796298692,1.089,1640.5,1640.0,3.08764291]
[1693796299786,1.089,1640.4,1640.0,3.08764291]
[1693796303062,4.619,1640.5,1640.1,0.67065693]
[1693796303263,0.4619,1640.4,1640.2,3.08185404]
[1693796304247,0.4619,1640.4,1640.3,0.00576462]
[1693796306895,0.4619,1640.4,1640.3,3.08761866]
[1693796310364,1.9809,1640.4,1640.3,0.00576462]
[1693796311208,1.9809,1640.4,1640.1,0.67065693]
[1693796311391,1.9809,1640.4,1640.2,3.08185404]
[1693796312208,1.9809,1640.4,1640.3,0.00576462]
[1693796315295,1.9809,1640.4,1639.7,1.6345]
[1693796315608,1.9809,1640.4,1640.3,0.67004443]
[1693796316014,1.9809,1640.4,1639.8,3.08185404]
[1693796316523,1.519,1640.1,1639.8,3.08185404]
[1693796316719,3.0,1640.3,1639.9,0.67126958]
[1693796317018,1.519,1640.0,1639.9,0.67126958]
[1693796317387,1.519,1640.0,1639.8,3.08185404]
[1693796317589,1.519,1640.1,1639.9,0.67126958]
[1693796317917,3.0,1640.3,1639.9,0.67126958]
[1693796317918,1.519,1640.0,1639.9,0.67126958]
[1693796318121,1.519,1640.0,1639.5,1.5161]
[1693796318293,1.519,1640.0,1639.6,3.08185404]
[1693796318707,1.519,1640.0,1639.7,0.67188239]
[1693796319028,1.519,1640.1,1639.8,3.08185404]
[1693796319337,1.519,1640.1,1639.8,3.08717157]
[1693796321334,1.519,1640.2,1639.8,3.08717157]
[1693796322912,1.085,1640.1,1639.8,3.08717157]
[1693796324520,1.59751122,1640.3,1639.8,4.48088873]
[1693796324521,0.6389065,1640.3,1639.8,4.48088873]
[1693796324828,1.42050472,1640.4,1639.8,4.48088873]
[1693796324829,1.1008065,1640.4,1639.8,4.48088873]
[1693796325640,1.1028065,1640.4,1639.8,4.48088873]
[1693796325795,1.1028065,1640.4,1639.8,4.17217157]
[1693796325996,2.1878065,1640.4,1639.8,3.08717157]
[1693796327342,1.085,1640.3,1639.8,3.08717157]
[1693796329539,1.085,1640.2,1639.8,3.08717157]
[1693796329751,1.085,1640.1,1639.8,3.08717157]
[1693796331053,3.21951122,1640.3,1639.8,3.08717157]
[1693796331054,1.085,1640.0,1639.8,3.08717157]
[1693796332160,1.085,1640.1,1639.8,3.08717157]
[1693796333163,2.1579065,1640.2,1639.9,0.67305204]
[1693796333366,2.47985762,1640.2,1639.9,3.75490608]
[1693796333720,3.43846234,1640.2,1639.9,3.75490608]
[1693796334144,3.43846234,1640.2,1640.0,0.00530136]
[1693796334645,3.21715395,1640.1,1640.0,0.00530136]
[1693796334830,4.93793979,1640.1,1640.0,0.00530136]
[1693796335217,4.93793979,1640.1,1639.6,1.6452]
[1693796335420,2.96930441,1640.0,1639.7,3.08185404]
[1693796335622,0.6389065,1640.0,1639.7,3.08185404]
[1693796335820,2.96917306,1640.0,1639.7,3.08185404]
[1693796336061,0.6389065,1640.0,1639.7,3.08185404]
[1693796336363,1.69823713,1640.0,1639.8,0.00531753]
[1693796336561,1.69823713,1640.0,1639.8,3.08717157]
[1693796337065,3.5662822,1640.1,1639.8,3.08717157]
[1693796337272,0.35662822,1640.0,1639.8,3.08717157]
[1693796338170,0.35662822,1640.0,1639.8,0.00531753]
[1693796339134,0.35662822,1640.0,1639.5,2.6908]
[1693796339358,0.35662822,1640.0,1639.6,3.08185404]
[1693796340131,0.35662822,1640.0,1639.7,0.00532562]
[1693796340340,0.35662822,1640.0,1639.7,3.08717966]
[1693796345341,0.35662822,1640.0,1639.8,3.08185404]
[1693796345877,1.87562822,1640.0,1639.7,0.00532562]
[1693796346168,1.87562822,1640.0,1639.4,3.4766838]
[1693796346169,1.519,1639.9,1639.5,2.5805]
[1693796346373,1.519,1639.9,1639.5,5.66235404]
[1693796347244,1.519,1639.9,1639.6,0.00533371]
[1693796348257,1.519,1639.9,1639.7,0.67363561]
[1693796348843,1.519,1639.9,1639.6,0.00533371]
[1693796350757,1.519,1639.8,1639.6,0.00533371]
[1693796351378,1.519,1639.7,1639.6,0.00533371]
[1693796352958,1.086,1639.7,1639.6,0.00533371]
[1693796354377,1.086,1639.7,1639.4,2.7092]
[1693796354592,1.086,1639.7,1639.4,5.79105404]
[1693796355193,1.086,1639.7,1639.5,0.0053418]
[1693796357898,1.7249065,1639.8,1639.5,3.08719584]
[1693796358192,0.6389065,1639.8,1639.5,3.08719584]
[1693796358397,0.71998112,1639.8,1639.5,3.08719584]
[1693796363089,0.71998112,1639.8,1639.6,0.67487765]
[1693796363290,1.80598112,1639.8,1639.6,0.67487765]
[1693796364227,1.80598112,1639.8,1639.7,0.00532562]
[1693796365243,1.80598112,1639.8,1639.6,0.67487765]
[1693796365429,1.086,1639.7,1639.6,0.67487765]
[1693796365937,1.086,1639.7,1639.4,2.7092]
[1693796366153,1.086,1639.7,1639.4,5.79105404]
[1693796368347,1.086,1639.7,1639.5,0.0053418]
[1693796369610,2.6207,1639.7,1639.5,0.0053418]
[1693796370218,2.6207,1639.7,1639.2,2.6665]
[1693796370418,2.6207,1639.7,1639.3,3.08185404]
[1693796371168,2.6207,1639.7,1639.4,0.00534989]
[1693796372318,2.6207,1639.7,1639.3,3.08185404]
[1693796373192,2.6207,1639.7,1639.4,0.00534989]
[1693796374298,2.6207,1639.7,1639.3,3.08185404]
[1693796375199,2.6207,1639.7,1639.4,0.00534989]
[1693796376216,2.6207,1639.7,1639.3,3.08185404]
[1693796377300,2.6207,1639.7,1639.4,0.00534989]
[1693796378301,2.6207,1639.7,1639.5,0.675099]
[1693796378495,2.6207,1639.7,1639.3,3.08185404]
[1693796379011,2.6207,1639.7,1639.2,2.6665]
[1693796379012,1.086,1639.4,1639.2,2.6665]
[1693796379164,1.086,1639.3,1639.2,2.6665]
[1693796379366,1.086,1639.4,1639.2,2.6665]
[1693796380308,1.086,1639.4,1639.3,0.00514324]
[1693796380505,1.50801112,1639.4,1639.3,0.00514324]
[1693796386443,4.56404368,1639.4,1639.3,0.00514324]
[1693796386611,8.14691762,1639.4,1639.0,2.6155]
[1693796386810,3.05622584,1639.3,1639.0,2.6155]
[1693796387011,0.30562258,1639.2,1639.0,2.6155]
[1693796387318,0.30562258,1639.2,1639.1,0.57217283]
[1693796387518,1.086,1639.2,1639.1,0.57217283]
[1693796387716,1.086,1639.2,1639.1,0.0049481]
[1693796388118,1.086,1639.2,1639.1,0.57266626]
[1693796388322,1.086,1639.2,1639.1,0.56771816]
[1693796388820,1.086,1639.2,1638.9,2.6155]
[1693796389021,1.41143032,1639.2,1638.9,5.69735404]
[1693796389224,1.41143032,1639.2,1639.0,0.0049562]
[1693796389731,1.086,1639.2,1639.0,0.0049562]
[1693796393108,1.086,1639.3,1639.0,3.08681024]
[1693796393447,2.12082251,1639.4,1639.1,3.6495722]
[1693796393645,1.05980816,1639.4,1639.1,3.6495722]
[1693796394144,2.14580816,1639.4,1639.1,3.6495722]
[1693796394337,2.14580816,1639.4,1639.2,0.00494001]
[1693796394903,1.086,1639.3,1639.2,0.00494001]
[1693796395308,1.086,1639.3,1638.9,4.1719]
[1693796395643,1.086,1639.2,1638.9,7.25375404]
[1693796395843,1.086,1639.2,1639.0,0.56788503]
[1693796396199,1.086,1639.2,1639.1,0.0049481]
[1693796397608,1.086,1639.3,1639.1,0.0049481]
[1693796397837,1.60722032,1639.3,1639.1,0.0049481]
[1693796402734,5.21220323,1639.4,1639.1,0.0049481]
[1693796402735,4.086,1639.4,1639.1,0.0049481]
[1693796403916,1.086,1639.4,1639.1,0.0049481]
[1693796404160,4.086,1639.4,1639.1,0.0049481]
[1693796404452,1.086,1639.3,1639.1,0.0049481]
[1693796404756,1.086,1639.2,1639.1,0.0049481]
[1693796406651,1.566,1639.2,1639.1,0.0049481]
[1693796406952,2.38650032,1639.2,1639.1,0.0049481]
[1693796408757,4.08541004,1639.2,1639.1,0.0049481]
[1693796409121,7.08541004,1639.2,1639.1,0.0049481]
[1693796409946,8.45216671,1639.2,1639.1,0.0049481]
[1693796410838,7.08541004,1639.2,1639.1,0.0049481]
[1693796411229,8.45215799,1639.2,1639.1,0.0049481]
[1693796411953,7.08541004,1639.2,1639.1,0.0049481]
[1693796412153,9.41054606,1639.2,1639.1,0.0049481]
[1693796415065,8.45204212,1639.2,1639.1,0.0049481]
[1693796415257,7.97204212,1639.2,1639.1,0.0049481]
[1693796415560,1.90650032,1639.2,1639.1,0.0049481]
[1693796420282,1.13107349,1639.3,1639.1,0.0049481]
[1693796420440,0.63900323,1639.4,1639.1,3.08680214]
[1693796420646,0.63900323,1639.4,1639.2,0.56744924]
[1693796420877,7.69629916,1639.5,1639.2,0.56744924]
[1693796421082,1.69826209,1639.4,1639.2,3.19074924]
[1693796421445,1.69826209,1639.4,1639.2,2.6233]
[1693796422389,4.69629916,1639.5,1639.3,0.56714267]
[1693796422745,4.69629916,1639.5,1639.2,5.70515404]
[1693796422948,5.5984836,1639.5,1639.2,5.70515404]
[1693796423494,4.6407041,1639.5,1639.2,5.70515404]
[1693796423799,1.69819953,1639.4,1639.2,5.70515404]
[1693796424164,0.63851966,1639.4,1639.2,5.70515404]
[1693796429432,0.63851966,1639.4,1639.2,2.6233]
[1693796429584,1.086,1639.3,1638.9,1.6024]
[1693796429919,1.086,1639.1,1638.8,0.1]
[1693796430141,1.086,1639.1,1639.0,0.56863004]
[1693796430697,1.086,1639.1,1639.0,0.57345959]
[1693796431600,1.4946,1639.1,1639.0,0.57345959]
[1693796432327,3.0,1639.3,1639.0,0.57345959]
[1693796432487,3.0,1639.3,1639.0,0.00482955]
[1693796432488,1.086,1639.3,1639.0,0.00482955]
[1693796432709,1.086,1639.3,1638.8,2.8281]
[1693796432710,1.086,1639.3,1638.9,1.5783]
[1693796432940,1.086,1639.3,1639.1,0.56040179]
[1693796433427,1.086,1639.3,1638.9,4.66015404]
[1693796433624,1.71620197,1639.3,1639.2,0.00481336]
[1693796433927,5.76387058,1639.3,1639.2,0.00481336]
[1693796434578,5.76387058,1639.3,1638.9,4.66015404]
[1693796434780,3.31250113,1639.3,1638.9,4.66015404]
[1693796435010,3.31250113,1639.3,1639.0,0.5605064]
[1693796435626,3.31250113,1639.3,1639.1,0.00482146]
[1693796435627,6.41250113,1639.3,1639.1,0.00482146]
[1693796435926,0.64125011,1639.2,1639.1,0.00482146]
[1693796436132,6.41250113,1639.3,1639.1,0.00482146]
[1693796436424,5.45472163,1639.3,1639.1,0.00482146]
[1693796436648,4.36872163,1639.3,1639.1,0.00482146]
[1693796437405,3.1,1639.3,1639.2,3.08185404]
[1693796438702,3.1,1639.3,1639.2,3.0866674]
[1693796439931,3.1,1639.3,1639.2,3.64633389]
[1693796474758,3.1,1639.3,1639.1,1.086]
[1693796475058,3.1,1639.3,1638.8,3.68472018]
[1693796475059,1.396,1639.2,1638.8,0.1]
[1693796475259,1.086,1639.1,1638.8,0.1]
[1693796475740,1.086,1639.1,1638.9,0.00391014]
[1693796476117,2.03484339,1639.2,1638.9,0.00391014]
[1693796476314,1.086,1639.0,1638.8,0.1]
[1693796477732,1.72484339,1639.0,1638.8,0.1]
[1693796478055,1.086,1639.0,1638.8,0.1]
[1693796478716,1.086,1639.0,1638.9,0.00361029]
[1693796479624,1.086,1639.0,1638.8,0.1]
[1693796480641,1.086,1639.0,1638.9,0.00361029]
[1693796480975,3.35313236,1639.0,1638.9,0.00361029]
[1693796481533,3.35313236,1639.0,1638.8,0.1]
[1693796481831,2.29315424,1639.0,1638.8,0.1]
[1693796482026,1.566,1638.9,1638.8,0.1]
[1693796482474,3.26489638,1638.9,1638.8,0.1]
[1693796482640,4.15264361,1638.9,1638.8,0.62069094]
[1693796483960,2.45374723,1638.9,1638.8,0.62069094]
[1693796491838,5.45374723,1638.9,1638.8,0.62069094]
[1693796492140,8.45374723,1638.9,1638.8,0.62069094]
[1693796507151,7.97374723,1638.9,1638.8,0.62069094]
[1693796507365,6.88774723,1638.9,1638.8,0.62069094]
[1693796509752,7.97374723,1638.9,1638.8,0.62069094]
[1693796509956,4.97374723,1638.9,1638.8,0.62069094]
[1693796510438,7.97374723,1638.9,1638.8,0.62069094]
[1693796510756,4.97374723,1638.9,1638.8,0.62069094]
[1693796510941,7.97374723,1638.9,1638.8,0.62069094]
[1693796513634,4.97374723,1638.9,1638.8,0.62069094]
[1693796513849,9.03383244,1638.9,1638.8,0.62069094]
[1693796514173,9.67112511,1638.9,1638.8,0.62069094]
[1693796514755,9.03383244,1638.9,1638.8,0.62069094]
[1693796514951,9.67112511,1638.9,1638.8,0.62069094]
[1693796515949,11.16573451,1638.9,1638.8,0.62069094]
[1693796516844,12.12167352,1638.9,1638.8,0.62069094]
[1693796517988,11.48438085,1638.9,1638.8,0.62069094]
[1693796518883,12.7589662,1638.9,1638.8,0.62069094]
[1693796520012,13.48718431,1638.9,1638.8,0.62069094]
[1693796520209,10.48718431,1638.9,1638.8,0.62069094]
[1693796520414,13.48718431,1638.9,1638.8,0.62069094]
[1693796520980,13.80583065,1638.9,1638.8,0.62069094]
[1693796521395,10.80583065,1638.9,1638.8,0.62069094]
[1693796521716,19.95956971,1638.9,1638.8,0.62069094]
[1693796523520,18.36633802,1638.9,1638.8,0.62069094]
[1693796523816,19.96684261,1638.9,1638.8,0.62069094]
[1693796523970,18.36633802,1638.9,1638.8,0.62069094]
[1693796524172,19.96704803,1638.9,1638.8,0.62069094]
[1693796524515,18.36633802,1638.9,1638.8,0.62069094]
[1693796524685,19.96704821,1638.9,1638.8,0.62069094]
[1693796525084,18.36633802,1638.9,1638.8,0.62069094]
[1693796527615,15.36633802,1638.9,1638.8,0.62069094]
[1693796528120,18.36633802,1638.9,1638.8,0.62069094]
[1693796529008,19.96786754,1638.9,1638.8,0.62069094]
[1693796532007,19.97740874,1638.9,1638.8,0.62069094]
[1693796539433,4.80316906,1638.9,1638.8,0.62069094]
[1693796539763,2.09075063,1639.0,1638.8,0.62069094]
[1693796539764,1.28122715,1639.0,1638.8,3.70254498]
[1693796540035,5.98277601,1639.3,1638.9,3.08185404]
[1693796540332,4.38122715,1639.3,1638.9,3.08185404]
[1693796540498,4.38122715,1639.3,1639.0,0.82839228]
[1693796540695,4.38122715,1639.3,1639.0,3.91384852]
[1693796542054,3.1,1639.3,1639.0,3.91384852]
[1693796560566,3.1,1639.3,1639.1,3.08185404]
[1693796560778,3.1,1639.3,1639.1,3.60166658]
[1693796561084,3.1,1639.3,1639.2,0.36016666]
[1693796561283,3.1,1639.3,1639.2,3.4420207]
[1693796561767,3.1,1639.3,1639.2,3.44560671]
[1693796564638,3.1,1639.3,1639.2,0.00358601]
[1693796574896,3.1,1639.3,1639.2,0.52269077]
[1693796580909,4.79778222,1639.3,1639.2,0.52269077]
[1693796581938,6.10423963,1639.3,1639.2,0.52269077]
[1693796583732,7.06128491,1639.3,1639.2,0.52269077]
[1693796584838,7.6993151,1639.3,1639.2,0.52269077]
[1693796585922,8.25892519,1639.3,1639.2,0.52269077]
[1693796586661,7.70303462,1639.3,1639.2,0.52269077]
[1693796590541,7.70303462,1639.3,1639.2,3.60454481]
[1693796590771,6.42697424,1639.3,1639.2,3.60454481]
[1693796591070,7.06745363,1639.3,1639.2,3.96499929]
[1693796591755,3.1,1639.3,1639.2,3.96499929]
[1693796595438,3.1,1639.3,1639.2,5.05099929]
[1693796598658,3.1,1639.3,1639.2,3.96499929]
[1693796601453,3.1,1639.3,1639.2,3.60454481]
[1693796606685,3.09425,1639.3,1639.2,3.60454481]
[1693796623512,3.09425,1639.3,1639.2,7.69054481]
[1693796637637,3.0857,1639.3,1639.2,7.69054481]
[1693796639338,3.0857,1639.3,1639.2,6.60454481]
[1693796640345,3.0857,1639.3,1639.2,8.19229929]
[1693796643353,3.0857,1639.3,1639.2,9.27829929]
[1693796647667,3.0857,1639.3,1639.2,8.19229929]
[1693796647862,3.0857,1639.3,1639.2,6.60454481]
[1693796648866,3.0857,1639.3,1639.2,7.69054481]
[1693796652329,3.0857,1639.3,1639.2,3.60454481]
[1693796659760,3.0857,1639.3,1639.2,0.52269077]
[1693796666658,4.1717,1639.3,1639.2,0.52269077]
[1693796666862,4.65281694,1639.3,1639.2,0.52269077]
[1693796667506,3.56681694,1639.3,1639.2,0.52269077]
[1693796674534,4.65281694,1639.3,1639.2,0.52269077]
[1693796674836,6.35205763,1639.3,1639.2,0.52269077]
[1693796675414,8.16290927,1639.3,1639.2,0.52269077]
[1693796676348,8.48264396,1639.3,1639.2,0.52269077]
[1693796677330,9.12150136,1639.3,1639.2,0.52269077]
[1693796677711,8.16229729,1639.3,1639.2,0.52269077]
[1693796679153,5.26544565,1639.3,1639.2,0.52269077]
[1693796679337,3.0857,1639.3,1639.2,0.52269077]
[1693796680004,3.0857,1639.3,1639.2,0.40701719]
[1693796680209,3.0857,1639.3,1638.9,2.6622]
[1693796680550,3.0857,1639.3,1639.0,3.08185404]
[1693796680857,3.0857,1639.3,1639.0,3.56131725]
[1693796682332,3.0857,1639.3,1639.0,4.18366898]
[1693796692467,3.0857,1639.3,1639.0,5.26966898]
[1693796692639,3.0857,1639.3,1639.1,1.086]
[1693796692837,3.0857,1639.3,1639.2,3.08185404]
[1693796693271,3.0857,1639.3,1639.2,3.55701981]
[1693796693634,3.0857,1639.3,1639.2,3.56019917]
[1693796697899,3.0857,1639.3,1639.2,4.02481909]
[1693796702598,3.0857,1639.3,1639.2,0.47834513]
[1693796707706,3.0857,1639.3,1639.2,3.56019917]
[1693796711549,3.05816,1639.3,1639.2,3.56019917]
[1693796718661,4.2195574,1639.7,1639.2,3.56019917]
[1693796718865,4.2195574,1639.7,1639.3,3.08185404]
[1693796719176,4.86532742,1639.7,1639.3,3.56007193]
[1693796719664,4.86532742,1639.7,1639.4,0.00316317]
[1693796719987,4.86532742,1639.7,1639.4,3.08501721]
[1693796720649,2.99752742,1639.7,1639.4,3.08501721]
[1693796720973,2.3517574,1639.7,1639.4,3.08501721]
[1693796724044,3.31096147,1639.7,1639.4,3.08501721]
[1693796724489,1.7129,1639.7,1639.4,3.08501721]
[1693796724771,3.31139306,1639.7,1639.5,0.47850126]
[1693796725642,3.31139306,1639.7,1639.6,0.003147]
[1693796725839,4.63794074,1639.7,1639.6,0.003147]
[1693796727472,3.98991199,1639.7,1639.6,0.003147]
[1693796727636,3.9900848,1639.7,1639.6,0.003147]
[1693796728052,3.03098896,1639.7,1639.6,0.003147]
[1693796730286,3.9900848,1639.7,1639.6,0.003147]
[1693796731762,3.9900848,1639.7,1639.6,0.00711156]
[1693796739802,3.9900848,1639.7,1639.6,1.02064505]
[1693796749823,3.35051477,1639.7,1639.6,1.02064505]
[1693796750324,4.28051569,1639.7,1639.6,1.02064505]
[1693796750832,5.55931014,1639.7,1639.6,1.02064505]
[1693796754430,6.15552101,1639.7,1639.6,1.02064505]
[1693796757543,6.17921154,1639.7,1639.6,1.02064505]
[1693796766488,6.18020119,1639.7,1639.6,1.02064505]
[1693796769869,5.25020027,1639.7,1639.6,1.02064505]
[1693796776425,7.93731417,1639.7,1639.6,1.02064505]
[1693796776908,6.85131417,1639.7,1639.6,1.02064505]
[1693796784610,5.7567,1639.8,1639.6,1.02064505]
[1693796784788,6.87185419,1639.7,1639.6,1.02064505]